fUSD/lending_fUSD_20240709
["ID","MTS","AMOUNT","RATE_DAILY","PERIOD"]
[331563012,1720510237505,-286.3073085,0.0001389,2]
[331563013,1720510237518,-74.3626915,0.0001389,2]
[331563015,1720510237527,-548.22616659,0.000139,2]
[331563017,1720510237536,-154.57134625,0.000139,2]
[331563028,1720510237702,-20.36296675,0.000139,2]
[331563029,1720510237715,-541.07103325,0.000139,2]
[331563030,1720510237779,-6958.92896675,0.000139,2]
[331563031,1720510237789,-160.20384159,0.000139,2]
[331563032,1720510237800,-1036.0,0.000139,2]
[331563033,1720510237809,-660.441358,0.000139,2]
[331563034,1720510237819,-534.78466158,0.000139,2]
[331563035,1720510237829,-322.15848251,0.000139,2]
[331563036,1720510237839,-968.9845302,0.000139,2]
[331563037,1720510237849,-284.15819788,0.000139,2]
[331563038,1720510237859,-417.93936495,0.0001392,2]
[331563039,1720510237871,-360.67,0.0001399,2]
[331563040,1720510237881,-360.67,0.0001399,2]
[331563041,1720510237891,-360.67,0.0001399,2]
[331563042,1720510237900,-360.67,0.0001399,2]
[331563043,1720510237910,-6102.6621044,0.00013995,2]
[331563044,1720510237925,-853.7002138,0.00013995,2]
[331563045,1720510237935,-257.20947315,0.00013999,2]
[331563046,1720510237945,-500.0,0.00013999,2]
[331563047,1720510237955,-152.61508556,0.00013999,2]
[331563048,1720510237966,-500.0,0.00013999,2]
[331563049,1720510237976,-156.43035221,0.00013999,2]
[331563050,1720510237986,-500.0,0.00013999,2]
[331563051,1720510237996,-500.0,0.00013999,2]
[331563053,1720510238007,-158.15874435,0.00013999,2]
[331563054,1720510238018,-566.0,0.00014,2]
[331563056,1720510238027,-3955.44462307,0.00014,2]
[331563059,1720510238040,-1394.66312371,0.00014,2]
[331563061,1720510238051,-1925.36,0.00014,2]
[331563063,1720510238063,-1244.38699109,0.00014,2]
[331563086,1720510238275,-482970.83121897,0.00014,2]
[331563089,1720510238290,-420509.88509678,0.00014,2]
[331563091,1720510238302,-473678.52982457,0.00014,2]
[331563161,1720510240625,-330.4,0.00014,2]
[331563162,1720510240638,-52926.90367071,0.00014,2]
[331563163,1720510240654,-426.096,0.00014,2]
[331563164,1720510240667,-1065.24,0.00014,2]
[331563185,1720510244338,-500.57827625,0.00014,2]
[331563186,1720510244350,-562.81272849,0.00014,2]
[331563187,1720510244362,-327.565824,0.00014,2]
[331563191,1720510245768,-155464.98871259,0.00014,2]
[331563192,1720510245848,-10444.4,0.00014,2]
[331563193,1720510245860,-287.91735368,0.00014,2]
[331563194,1720510245872,-309.24997232,0.00014,2]
[331563195,1720510245926,-1224.74,0.00014,2]
[331563198,1720510451945,2000.0,0.00026,120]
[331563206,1720510544032,3610.40432518,0.000112,2]
[331563213,1720510689843,506.65,0.00010984,2]
[331563228,1720511032098,227.27128939,0.00011199,2]
[331563231,1720511060196,881.35624115,0.00011199,2]
[331563232,1720511061799,211.539,0.00011199,2]
[331563235,1720511121409,1069.94736295,0.00011199,2]
[331563236,1720511142191,1903.65279599,0.00011199,2]
[331563237,1720511146738,47130.12270412,0.00011199,2]
[331563240,1720511291120,2496.09067824,0.00011199,2]
[331563241,1720511295192,569.81,9.846e-05,2]
[331563242,1720511303074,251.5542779,0.00011199,2]
[331563243,1720511373121,227.27128939,0.00011199,2]
[331563244,1720511411652,1674.78,0.00011427,2]
[331563250,1720511431803,-435.061857,0.00011702,2]
[331563251,1720511431815,-469.90346717,0.00011761,2]
[331563271,1720511434050,-30.09653283,0.00011761,2]
[331563272,1720511434059,-163.52,0.00011764,2]
[331563273,1720511434069,-163.8471813,0.00011922,2]
[331563274,1720511434080,-86.1528187,0.00011922,2]
[331563275,1720511434472,-741.53,0.00011936,2]
[331563276,1720511434519,-26.48206244,0.00011977,2]
[331563277,1720511434533,-464.47486671,0.00011977,2]
[331563278,1720511434545,-1132.38722525,0.00011977,2]
[331563279,1720511434559,-401.61999996,0.00011977,2]
[331563280,1720511434571,-4363.87812604,0.00011977,2]
[331563281,1720511434581,-158.43,0.00011977,2]
[331563282,1720511434590,-158.43,0.00012022,2]
[331563283,1720511434603,-158.43,0.00012067,2]
[331563284,1720511434612,-569.81,0.0001211,2]
[331563285,1720511434623,-158.43,0.00012111,2]
[331563286,1720511434632,-158.43,0.00012156,2]
[331563287,1720511434641,-13.86187396,0.000122,2]
[331563288,1720511434652,-144.56812604,0.000122,2]
[331563289,1720511434662,-300.0,0.00012233,2]
[331563290,1720511434671,-300.0,0.00012233,2]
[331563291,1720511434681,-163.56,0.00012234,2]
[331563292,1720511434692,-158.43,0.00012245,2]
[331563293,1720511434701,-158.43,0.00012289,2]
[331563294,1720511434711,-961.66396409,0.00012294,2]
[331563295,1720511434723,-4204.34603591,0.00012294,2]
[331563296,1720511434732,-250.0,0.000123,2]
[331563297,1720511434741,-199.52,0.00012309,2]
[331563298,1720511434751,-199.52,0.00012313,2]
[331563299,1720511434760,-410.88428034,0.00012314,2]
[331563300,1720511434769,-199.52,0.00012316,2]
[331563301,1720511434778,-199.52,0.00012319,2]
[331563302,1720511434787,-199.52,0.00012322,2]
[331563303,1720511434796,-199.52,0.00012326,2]
[331563304,1720511434805,-199.52,0.00012329,2]
[331563305,1720511434814,-199.52,0.00012332,2]
[331563306,1720511434823,-158.43,0.00012334,2]
[331563307,1720511434831,-150.0,0.00012334,2]
[331563308,1720511434840,-199.52,0.00012335,2]
[331563309,1720511434850,-199.52,0.00012338,2]
[331563310,1720511434858,-199.52,0.00012342,2]
[331563311,1720511434869,-199.52,0.00012345,2]
[331563312,1720511434878,-199.52,0.00012348,2]
[331563313,1720511434887,-199.52,0.00012351,2]
[331563314,1720511434897,-199.52,0.00012355,2]
[331563315,1720511434907,-199.52,0.00012358,2]
[331563316,1720511434916,-199.52,0.00012361,2]
[331563317,1720511434926,-199.52,0.00012364,2]
[331563318,1720511434935,-199.52,0.00012368,2]
[331563319,1720511434946,-199.52,0.00012371,2]
[331563320,1720511434956,-158.43,0.00012379,2]
[331563321,1720511434965,-286.07570819,0.00012389,2]
[331563322,1720511434978,-2419.11429181,0.00012389,2]
[331563323,1720511434987,-158.43,0.00012423,2]
[331563324,1720511434997,-158.43,0.00012468,2]
[331563325,1720511435006,-200.0,0.00012485,2]
[331563326,1720511435016,-1000.0,0.00012495,2]
[331563327,1720511435026,-289.20469326,0.000125,2]
[331563328,1720511435035,-755.96452611,0.0001251,2]
[331563329,1720511435045,-158.43,0.00012512,2]
[331563330,1720511435057,-158.43,0.00012557,2]
[331563331,1720511435067,-150.0,0.000126,2]
[331563332,1720511435076,-158.43,0.00012601,2]
[331563333,1720511435086,-3313.91,0.00012611,2]
[331563334,1720511435096,-150.99,0.00012611,2]
[331563335,1720511435105,-150.0,0.0001263,2]
[331563336,1720511435115,-1244.53,0.00012653,2]
[331563337,1720511435125,-6861.04,0.00012666,2]
[331563338,1720511435134,-20746.93,0.00012676,2]
[331563339,1720511435143,-8214.06,0.00012676,2]
[331563340,1720511435152,-168.75,0.00012742,2]
[331563341,1720511435162,-499.99,0.00012742,2]
[331563342,1720511435171,-1167.89,0.00012742,2]
[331563343,1720511435180,-10647.53,0.00012742,2]
[331563344,1720511435190,-476.5,0.00012742,2]
[331563345,1720511435200,-4796.1,0.00012819,2]
[331563346,1720511435209,-322.1584825,0.00012933,2]
[331563347,1720511435219,-356.52310772,0.00012933,2]
[331563348,1720511435229,-168.14,0.00012953,2]
[331563349,1720511435238,-171.46830767,0.0001299,2]
[331563350,1720511435248,-171.46830767,0.0001299,2]
[331563351,1720511435258,-171.46830767,0.0001299,2]
[331563352,1720511435268,-216133.44283961,0.00013,2]
[331563353,1720511435280,-681.39069848,0.00013,2]
[331563354,1720511435291,-4285.64,0.00013,2]
[331563355,1720511435303,-10837.23667898,0.00013,2]
[331563356,1720511435315,-653.78731251,0.00013,2]
[331563357,1720511435327,-428.45648914,0.00013,2]
[331563363,1720511437722,-2838.32758398,0.00013,2]
[331563364,1720511437733,-1375705.45076059,0.00013,2]
[331563365,1720511437922,-10651.93547108,0.00013,2]
[331563366,1720511437938,-351821.29895254,0.00013,2]
[331563367,1720511437961,-694136.01201369,0.00013,2]
[331563368,1720511437974,-438.64312681,0.00013,2]
[331563369,1720511437991,-3862.00569029,0.00013,2]
[331563370,1720511438089,-15122.16734889,0.00013,2]
[331563371,1720511438101,-116144.66660315,0.00013,2]
[331563373,1720511438118,-41006.78592447,0.00013,2]
[331563449,1720511439757,-352.75909744,0.00013,2]
[331563450,1720511439769,-1500.0,0.00013,2]
[331563451,1720511439782,-2865.49684456,0.00013,2]
[331563452,1720511439864,-156395.65462425,0.00013,2]
[331563453,1720511439880,-6906.00280481,0.00013,2]
[331563454,1720511439972,-117182.03944402,0.00013,2]
[331563455,1720511439985,-1760.19550154,0.00013,2]
[331563475,1720511444011,-3583.0331,0.00011922,2]
[331563476,1720511444021,-1225.66269938,0.00013,2]
[331563482,1720511445969,-6882.92088896,0.00013,2]
[331563483,1720511446182,-697.64127667,0.00013,2]
[331563504,1720511537884,2496.09067824,0.00011199,2]
[331563505,1720511566131,1565.29704726,0.00011199,2]
[331563506,1720511625592,2141.46146477,0.00011199,2]
[331563507,1720511673634,864.47858296,0.00011199,2]
[331563508,1720511686832,155.37169574,0.00011199,2]
[331563509,1720511690122,297.70719904,0.00011199,2]
[331563510,1720511700837,310.0,0.00011199,2]
[331563511,1720511749069,265.47446231,0.00011199,2]
[331563512,1720511759486,3026.88693848,0.00011199,2]
[331563513,1720511764653,155.0,0.00011199,2]
[331563514,1720511776306,266.43574909,0.00011199,2]
[331563515,1720511794967,2496.09067824,0.00011199,2]
[331563516,1720511811617,410.77096163,0.00011199,2]
[331563517,1720511846764,345.39181827,0.00011199,2]
[331563518,1720511846790,1768.88012448,0.00011199,2]
[331563519,1720511862136,227.27128939,0.00011199,2]
[331563520,1720511874665,891.01341507,0.00011199,2]
[331563521,1720511932675,533.96742258,0.00011199,2]
[331563522,1720511943454,545.03585009,0.00011199,2]
[331563523,1720511943486,594.12744724,0.00011199,2]
[331563524,1720511965919,572.17,0.00010313,2]
[331563525,1720512046617,2496.09067824,0.00011199,2]
[331563527,1720512094058,15285.98212095,0.00011199,2]
[331563528,1720512098282,155.0,0.00011199,2]
[331563530,1720512155382,155.0,0.00011199,2]
[331563532,1720512326202,498.61630064,0.00011199,2]
[331563533,1720512343982,544.49188943,0.00011199,2]
[331563534,1720512386898,755.35258855,0.00011199,2]
[331563538,1720512503517,3153.97,0.00027,120]
[331563539,1720512530216,227.27128939,0.00011199,2]
[331563540,1720512552546,571.02,9.745e-05,2]
[331563541,1720512563854,310.0,0.00011199,2]
[331563552,1720512631998,-250.0,0.00011744,2]
[331563553,1720512632009,-168.14,0.00011755,2]
[331563554,1720512632018,-173.15774171,0.00011789,2]
[331563555,1720512632028,-173.1577417,0.00011808,2]
[331563556,1720512632039,-2734.56828585,0.00011888,2]
[331563557,1720512632798,-290.50917534,0.00011888,2]
[331563558,1720512632808,-150.0,0.00011888,2]
[331563559,1720512632817,-5408.55379677,0.00011889,2]
[331563560,1720512632831,-5314.0001,0.00011889,2]
[331563561,1720512632845,-13177.44610323,0.00011889,2]
[331563562,1720512632856,-800.0,0.00011908,2]
[331563563,1720512632865,-321.88,0.00011954,2]
[331563564,1720512632875,-250.0,0.00012001,2]
[331563565,1720512632884,-571.02,0.00012009,2]
[331563566,1720512632898,-158.96592151,0.00012094,2]
[331563567,1720512632908,-249.16,0.00012194,2]
[331563568,1720512632921,-150.99,0.00012202,2]
[331563569,1720512632934,-499.99,0.00012202,2]
[331563570,1720512632944,-2135.59,0.00012202,2]
[331563571,1720512632953,-255.67407275,0.00012302,2]
[331563572,1720512632964,-200.0,0.0001243,2]
[331563573,1720512632977,-29999.99,0.00012462,2]
[331563574,1720512632986,-9803.33,0.00012462,2]
[331563575,1720512632995,-397.0,0.00012488,2]
[331563576,1720512633005,-164.75,0.00012499,2]
[331563577,1720512633014,-164.75,0.0001252,2]
[331563578,1720512633024,-164.75,0.00012541,2]
[331563579,1720512633033,-164.75,0.00012562,2]
[331563580,1720512633042,-417.93936495,0.00012714,2]
[331563581,1720512633053,-300.41,0.0001274,2]
[331563582,1720512633063,-169.33,0.0001275,2]
[331563583,1720512633072,-253.2166,0.000129,2]
[331563584,1720512633081,-205.3567,0.000129,2]
[331563585,1720512633090,-486.2125,0.000129,2]
[331563586,1720512633099,-158.9659215,0.000129,2]
[331563587,1720512633109,-1100.4928,0.000129,2]
[331563588,1720512633119,-1285.3777,0.000129,2]
[331563589,1720512633128,-8186.1587,0.000129,2]
[331563590,1720512633138,-1860.323,0.000129,2]
[331563591,1720512633149,-7303.5284,0.000129,2]
[331563592,1720512633159,-3355.7269,0.000129,2]
[331563593,1720512633169,-2450.376,0.000129,2]
[331563594,1720512633178,-323.1997,0.000129,2]
[331563595,1720512633188,-346.45238803,0.000129,2]
[331563596,1720512633197,-830.5124,0.000129,2]
[331563597,1720512633207,-3001.54321,0.000129,2]
[331563598,1720512633216,-244.9408009,0.000129,2]
[331563599,1720512633225,-2500.0,0.000129,2]
[331563600,1720512633234,-237.6820718,0.000129,2]
[331563601,1720512633244,-716.52353451,0.000129,2]
[331563602,1720512633253,-322.7052728,0.000129,2]
[331563603,1720512633263,-255.0,0.0001297,2]
[331563604,1720512633272,-14234.79133747,0.00012997,2]
[331563605,1720512633281,-20750.13615068,0.00012997,2]
[331563606,1720512633294,-278.60878409,0.00012997,2]
[331563607,1720512633305,-1115.8023317,0.00012997,2]
[331563608,1720512633317,-2756.11977575,0.00012997,2]
[331563609,1720512633328,-10192.63459946,0.00012997,2]
[331563610,1720512633337,-745.0,0.00013,2]
[331563611,1720512633347,-401666.60496888,0.00013,2]
[331563612,1720512633358,-2333.50701761,0.00013,2]
[331563613,1720512633368,-2207.40403079,0.00013,2]
[331563614,1720512633380,-1325.14524,0.00013,2]
[331563615,1720512633393,-603.38328281,0.00013,2]
[331563616,1720512633404,-11111.14076,0.00013,2]
[331563617,1720512633415,-49675.5478722,0.00013,2]
[331563618,1720512633426,-6250.5055144,0.00013,2]
[331563619,1720512633437,-289.3455407,0.00013,2]
[331563625,1720512637936,-1728.17909024,0.00013,2]
[331563626,1720512637949,-384.2290936,0.00013,2]
[331563627,1720512637961,-410.25965986,0.00013,2]
[331563628,1720512637975,-1777.0,0.00013,2]
[331563629,1720512637991,-14038.42116727,0.00013,2]
[331563630,1720512638046,-605.30007405,0.00013,2]
[331563631,1720512638058,-9147.58767893,0.00013,2]
[331563632,1720512638069,-4026.77650109,0.00013,2]
[331563633,1720512638081,-434.55000021,0.00013,2]
[331563634,1720512638103,-695.50208201,0.00013,2]
[331563635,1720512638158,-6198.42274109,0.00013,2]
[331563642,1720512638326,-160621.04182802,0.00013,2]
[331563644,1720512638338,-5380.29155532,0.00013,2]
[331563646,1720512638350,-2109.83826179,0.00013,2]
[331563648,1720512638362,-313.63068727,0.00013,2]
[331563650,1720512638374,-12634.3239966,0.00013,2]
[331563653,1720512638386,-657.76259654,0.00013,2]
[331563655,1720512638404,-694136.01201369,0.00013,2]
[331563658,1720512638415,-70063.78979061,0.00013,2]
[331563660,1720512638427,-527.3426415,0.00013,2]
[331563759,1720512641676,-578.06080476,0.00013,2]
[331563760,1720512641695,-922.47844907,0.00013,2]
[331563761,1720512641707,-2335.77121904,0.00013,2]
[331563762,1720512641718,-1007.52312096,0.00013,2]
[331563763,1720512641729,-840.77658634,0.00013,2]
[331563764,1720512641740,-1881.60543212,0.00013,2]
[331563765,1720512641751,-5516.9099552,0.00013,2]
[331563766,1720512641762,-1663.5002,0.00013,2]
[331563767,1720512641773,-304.33735203,0.00013,2]
[331563768,1720512641786,-25988.15717172,0.00013,2]
[331563769,1720512641799,-844.59940527,0.00013,2]
[331563770,1720512641810,-1506.18546673,0.00013,2]
[331563771,1720512641824,-1302.16884323,0.00013,2]
[331563772,1720512641836,-13359.8266714,0.00013,2]
[331563773,1720512641852,-1986.34492326,0.00013,2]
[331563798,1720512644156,-2392.15729626,0.00013,2]
[331563799,1720512644168,-1096.89745099,0.00013,2]
[331563800,1720512644179,-690.0,0.00013,2]
[331563801,1720512644191,-328.04999985,0.00013,2]
[331563802,1720512644203,-1785.68914033,0.00013,2]
[331563803,1720512644216,-266.54442994,0.00013,2]
[331563804,1720512644336,-16343.625645,0.00013,2]
[331563805,1720512646143,-1160.28479229,0.00013,2]
[331563806,1720512646197,-1361.88681,0.00013,2]
[331563807,1720512646251,-2126.82656774,0.00013,2]
[331563808,1720512646306,-678.44,0.00013,2]
[331563809,1720512646360,-2217.94864019,0.00013,2]
[331563815,1720512792252,3110.4112111,0.00011199,2]
[331563816,1720512860008,268.23268086,0.00011199,2]
[331563817,1720512878426,155.27013329,0.00011199,2]
[331563818,1720512936843,685.36886605,0.00011199,2]
[331563819,1720512973774,227.27128939,0.00011199,2]
[331563820,1720513013490,321.22117304,0.00011199,2]
[331563821,1720513059326,291.61730771,0.00011199,2]
[331563824,1720513101699,568.06,9.92e-05,2]
[331563825,1720513105446,155.27484753,0.00011199,2]
[331563826,1720513107810,369.10201211,0.00011199,2]
[331563827,1720513121646,292.61554308,0.00011199,2]
[331563828,1720513148888,263.58284568,0.00011199,2]
[331563830,1720513332203,529.13407162,0.00011199,2]
[331563831,1720513405247,227.27128939,0.00011199,2]
[331564068,1720513678613,563.63,9.647e-05,2]
[331564069,1720513751170,527.03860811,0.00011199,2]
[331564091,1720513832297,-199.32,0.00011533,2]
[331564092,1720513832307,-744.21,0.00011632,2]
[331564093,1720513832318,-250.0,0.00011789,2]
[331564094,1720513832327,-119.43499977,0.00011808,2]
[331564095,1720513832806,-880.56500023,0.00011808,2]
[331564096,1720513832817,-216.87699977,0.00011823,2]
[331564097,1720513832833,-16.54300023,0.00011823,2]
[331564098,1720513832844,-151.79,0.00011877,2]
[331564099,1720513832854,-1659.74569352,0.00011877,2]
[331564100,1720513832865,-563.63,0.00011911,2]
[331564101,1720513832875,-250.0,0.00011919,2]
[331564102,1720513832886,-151.79,0.00011939,2]
[331564103,1720513832896,-151.79,0.00012001,2]
[331564104,1720513832906,-151.79,0.00012063,2]
[331564105,1720513832916,-151.79,0.00012125,2]
[331564107,1720513832926,-1161.71,0.00012184,2]
[331564109,1720513832935,-151.79,0.00012187,2]
[331564111,1720513832945,-151.79,0.00012249,2]
[331564113,1720513832955,-169.33,0.0001229,2]
[331564115,1720513832964,-491.21130625,0.00012302,2]
[331564117,1720513832976,-12.46649036,0.00012302,2]
[331564119,1720513832986,-227.27128939,0.00012302,2]
[331564121,1720513832995,-151.79,0.0001231,2]
[331564122,1720513833006,-151.79,0.00012372,2]
[331564123,1720513833016,-409.83,0.00012391,2]
[331564124,1720513833027,-300.0,0.00012391,2]
[331564125,1720513833037,-1736.77,0.00012392,2]
[331564126,1720513833047,-150.0,0.00012392,2]
[331564127,1720513833057,-23900.0,0.00012393,2]
[331564128,1720513833066,-151.79,0.00012434,2]
[331564129,1720513833076,-1666.81,0.00012455,2]
[331564130,1720513833086,-499.99,0.00012455,2]
[331564131,1720513833097,-151.79,0.00012496,2]
[331564132,1720513833106,-150.0,0.00012575,2]
[331564133,1720513833116,-417.93936495,0.00012626,2]
[331564134,1720513833127,-500.0,0.000127,4]
[331564135,1720513833136,-1100.0,0.000128,4]
[331564136,1720513833146,-2501.286,0.0001287,2]
[331564137,1720513833156,-17899.6526,0.000129,2]
[331564138,1720513833166,-6375.5642,0.000129,2]
[331564139,1720513833176,-48676.5025,0.000129,2]
[331564140,1720513833186,-199.2846,0.000129,2]
[331564141,1720513833196,-1600.0,0.000129,4]
[331564142,1720513833206,-626.95809267,0.000129,2]
[331564143,1720513833215,-323.06979963,0.000129,2]
[331564144,1720513833225,-158.45471454,0.000129,2]
[331564145,1720513833235,-1791.5341,0.000129,2]
[331564146,1720513833245,-199.32,0.00012975,2]
[331564147,1720513833254,-785.20134825,0.00012999,2]
[331564148,1720513833264,-189992.32273409,0.00013,2]
[331564218,1720513839132,-273.09054925,0.0001299,2]
[331564220,1720513839142,-13534.37026182,0.00013,2]
[331564223,1720513839158,-2396.30781176,0.00013,2]
[331564225,1720513839171,-2351.5490845,0.00013,2]
[331564227,1720513839183,-7984.92424283,0.00013,2]
[331564229,1720513839195,-504.25434585,0.00013,2]
[331564232,1720513839216,-694136.01201369,0.00013,2]
[331564286,1720513840288,-989.22878096,0.00013,2]
[331564288,1720513840302,-952.47687904,0.00013,2]
[331564293,1720513840352,-708.38907654,0.00013,2]
[331564295,1720513840364,-2459.97296239,0.00013,2]
[331564297,1720513840378,-7103.85414489,0.00013,2]
[331564299,1720513840389,-3850.09787817,0.00013,2]
[331564496,1720513843420,-227.27128939,0.00012302,2]
[331564498,1720513843430,-163.29386726,0.000129,2]
[331564500,1720513843440,-186.89662489,0.00013,2]
[331564502,1720513843451,-672.32,0.00013,2]
[331564504,1720513843463,-3078.39999999,0.00013,2]
[331564507,1720513843479,-376.65764648,0.00013,2]
[331564512,1720513843540,-431.0869708,0.00013,2]
[331564571,1720513846401,-5755.3,0.00013,2]
[331564572,1720513846540,-1542.38631053,0.00013,2]
[331564574,1720513921521,1332.48695783,0.00011199,2]
[331564582,1720514254044,1332.48695783,0.00011199,2]
[331564583,1720514265038,1332.48695783,0.00011199,2]
[331564584,1720514286417,507.26,0.00010374,2]
[331564604,1720514950396,502.4,0.0001038,2]
[331564605,1720515032318,-444.82445937,0.000118,2]
[331564606,1720515032329,-24.76017109,0.00012103,2]
[331564607,1720515032816,-291.62572891,0.00012103,2]
[331564608,1720515032825,-202.90427109,0.00012203,2]
[331564609,1720515032847,-3287.55572891,0.00012203,2]
[331564611,1720515032857,-168.14,0.00012215,2]
[331564613,1720515032867,-169.33,0.00012276,2]
[331564615,1720515032876,-155.0,0.00012314,2]
[331564617,1720515032887,-1000.0,0.00012355,2]
[331564619,1720515032896,-250.0,0.00012374,2]
[331564621,1720515032906,-150.0,0.00012575,2]
[331564622,1720515032916,-685.36886605,0.00012582,2]
[331564623,1720515032926,-502.4,0.00012644,2]
[331564624,1720515032935,-417.93936495,0.00012651,2]
[331564625,1720515032945,-150.0,0.00012767,2]
[331564626,1720515032955,-700.0,0.000128,4]
[331564627,1720515032964,-150.0,0.00012899,2]
[331564628,1720515032974,-300.0,0.00012899,2]
[331564629,1720515032984,-24061.0875,0.000129,2]
[331564630,1720515032993,-2861.0871,0.000129,2]
[331564631,1720515033003,-164.71,0.000129,2]
[331564632,1720515033013,-150.0,0.000129,2]
[331564633,1720515033022,-300.0,0.000129,2]
[331564634,1720515033033,-150.0,0.000129,2]
[331564635,1720515033043,-1000.0,0.000129,2]
[331564636,1720515033054,-1500.0,0.000129,4]
[331564637,1720515033064,-2500.0,0.000129,2]
[331564638,1720515033075,-548.58833113,0.000129,2]
[331564639,1720515033086,-889.53841566,0.00012968,2]
[331564640,1720515033097,-292.33438899,0.00012999,2]
[331564641,1720515033107,-269.54519256,0.00012999,2]
[331564642,1720515033118,-14693.0686187,0.00013,2]
[331564643,1720515034908,-1069.50759817,0.00013,2]
[331564644,1720515034923,-3845.54217787,0.00013,2]
[331564645,1720515034934,-1623.28971584,0.00013,2]
[331564646,1720515034945,-597.34227907,0.00013,2]
[331564647,1720515034957,-13501.65778264,0.00013,2]
[331564648,1720515034973,-15509.38427015,0.00013,2]
[331564649,1720515034984,-12411.84652715,0.00013,2]
[331564650,1720515034996,-2000.0,0.00013,2]
[331564651,1720515035007,-3800.0,0.00013,2]
[331564658,1720515038455,-1270.89616337,0.00013,2]
[331564659,1720515038470,-579.04336,0.00013,2]
[331564660,1720515038568,-269.54519257,0.00012999,2]
[331564661,1720515038579,-918.01690083,0.00013,2]
[331564662,1720515038626,-31211.77621045,0.00013,2]
[331564663,1720515038687,-694136.01201369,0.00013,2]
[331564835,1720515040471,-1405.63258024,0.00013,2]
[331564837,1720515040485,-84084.90840419,0.00013,2]
[331564840,1720515040500,-485.49,0.00013,2]
[331564851,1720515040597,-2018.49783349,0.00013,2]
[331565012,1720515043859,-202.15889442,0.00012999,2]
[331565013,1720515043869,-756.00362978,0.00013,2]
[331565014,1720515043881,-1556.9,0.00013,2]
[331565015,1720515043893,-179205.5588309,0.00013,2]
[331565040,1720515046737,-1394.04897652,0.00013,2]
[331565041,1720515046851,-5591.00000001,0.00013,2]
[331565044,1720515128406,3091.56242292,0.00011199,2]
[331565047,1720515298604,158.56262805,0.00011199,2]
[331565049,1720515393440,159.26,9.759e-05,2]
[331565053,1720515440875,35599.55324681,0.00011199,2]
[331565054,1720515466248,472.65,0.00010272,2]
[331565066,1720516079345,449.01,0.00010201,2]
[331565072,1720516232860,-355.41834579,0.00012021,2]
[331565073,1720516232871,-933.49206678,0.00012021,2]
[331565074,1720516232883,-1850.72560984,0.00012021,2]
[331565075,1720516232894,-315.43200759,0.00012021,2]
[331565076,1720516232903,-250.0,0.00012082,2]
[331565077,1720516232913,-199.32,0.00012194,2]
[331565078,1720516232923,-500.0,0.00012277,2]
[331565079,1720516232932,-300.0,0.00012371,2]
[331565080,1720516232942,-3583.0331,0.00012372,2]
[331565081,1720516232952,-1669.81815303,0.00012372,2]
[331565082,1720516232964,-1297.08091175,0.00012372,2]
[331565083,1720516232976,-283.39033038,0.00012372,2]
[331565084,1720516232987,-338.36,0.00012372,2]
[331565085,1720516232999,-2671.90482484,0.00012372,2]
[331565086,1720516233008,-449.01,0.00012465,2]
[331565087,1720516233019,-150.0,0.00012471,2]
[331565088,1720516233032,-1000.0,0.00012472,2]
[331565089,1720516233042,-184.0940624,0.000126,2]
[331565090,1720516233051,-657.11808023,0.000126,2]
[331565098,1720516237598,-342.88191977,0.000126,2]
[331565099,1720516237609,-258.84,0.00012604,2]
[331565100,1720516237619,-417.93936495,0.00012712,2]
[331565101,1720516237630,-419.36,0.000128,2]
[331565102,1720516237640,-1000.0,0.000128,2]